fUST/lending_fUST_20251003
["ID","MTS","AMOUNT","RATE_DAILY","PERIOD"]
[388856952,1759429678147,-2402.62,0.00019726,2]
[388856953,1759429678166,-947.23,0.00019726,2]
[388856954,1759429678186,-1064.7,0.00019726,2]
[388856955,1759429678205,-5133.67,0.00019726,2]
[388856956,1759429678225,-1552.33,0.00019726,2]
[388856957,1759429678244,-500.0,0.00019726,2]
[388856958,1759429678263,-1497.03,0.00019726,2]
[388856959,1759429678283,-765.58,0.00019726,2]
[388856960,1759429678302,-500.0,0.00019726,2]
[388856961,1759429678322,-1328.0,0.00019726,2]
[388856962,1759429678341,-1040.22,0.00019726,2]
[388856963,1759429678360,-500.0,0.00019726,2]
[388856964,1759429678380,-500.0,0.00019726,2]
[388856965,1759429678400,-3057.67,0.00019726,2]
[388856966,1759429678419,-500.0,0.00019726,2]
[388856967,1759429678439,-616.69,0.00019726,2]
[388856968,1759429678459,-500.0,0.00019726,2]
[388856969,1759429678477,-500.0,0.00019726,2]
[388856970,1759429678496,-500.0,0.00019726,2]
[388856971,1759429678516,-1123.86,0.00019726,2]
[388856972,1759429678537,-500.0,0.00019726,2]
[388856973,1759429678557,-541.78,0.00019726,2]
[388856974,1759429678766,-1000.24,0.00019726,2]
[388856975,1759429678788,-1207.86,0.00019726,2]
[388856976,1759429678810,-500.0,0.00019726,2]
[388856977,1759429678831,-500.0,0.00019726,2]
[388856978,1759429678852,-500.0,0.00019726,2]
[388856979,1759429678874,-500.0,0.00019726,2]
[388856980,1759429678895,-2337.12,0.00019726,2]
[388856981,1759429678916,-500.0,0.00019726,2]
[388856982,1759429678936,-500.0,0.00019726,2]
[388856983,1759429678957,-693.2,0.00019726,2]
[388856984,1759429678978,-500.0,0.00019726,2]
[388856985,1759429678997,-500.0,0.00019726,2]
[388856986,1759429679018,-500.0,0.00019726,2]
[388856987,1759429679039,-500.0,0.00019726,2]
[388856988,1759429679060,-500.0,0.00019726,2]
[388856989,1759429679081,-500.0,0.00019726,2]
[388856990,1759429679106,-4420.03,0.00019726,2]
[388856991,1759429679128,-7174.42,0.00019726,2]
[388856992,1759429679150,-524.9,0.00019726,2]
[388856993,1759429679172,-500.0,0.00019726,2]
[388856994,1759429679192,-420.52899445,0.00019726,2]
[388856995,1759429679213,-500.0,0.00019726,2]
[388856996,1759429679234,-500.0,0.00019726,2]
[388856997,1759429679254,-500.0,0.00019726,2]
[388856998,1759429679273,-500.0,0.00019726,2]
[388856999,1759429679293,-500.0,0.00019726,2]
[388857000,1759429679314,-500.0,0.00019726,2]
[388857001,1759429679334,-3103.78,0.00019726,2]
[388857002,1759429679354,-500.0,0.00019726,2]
[388857003,1759429679374,-219.83494167,0.00019726,2]
[388857004,1759429679396,-1180.24,0.00019726,2]
[388857005,1759429679417,-500.0,0.00019726,2]
[388857006,1759429679437,-500.0,0.00019726,2]
[388857007,1759429679456,-500.0,0.00019726,2]
[388857008,1759429679476,-1006.54,0.00019726,2]
[388857009,1759429679495,-1867.68,0.00019726,2]
[388857010,1759429679517,-500.0,0.00019726,2]
[388857011,1759429679538,-1078.31,0.00019726,2]
[388857012,1759429679559,-2663.37,0.00019726,2]
[388857013,1759429679579,-500.0,0.00019726,2]
[388857014,1759429679601,-500.0,0.00019726,2]
[388857015,1759429679623,-876.29,0.00019726,2]
[388857016,1759429679643,-746.16,0.00019726,2]
[388857017,1759429679663,-500.0,0.00019726,2]
[388857018,1759429679684,-1483.5,0.00019726,2]
[388857019,1759429679704,-500.0,0.00019726,2]
[388857020,1759429679725,-642.13,0.00019726,2]
[388857021,1759429679748,-500.0,0.00019726,2]
[388857022,1759429679767,-500.0,0.00019726,2]
[388857023,1759429679787,-629.23,0.00019726,2]
[388857024,1759429679813,-296.33826428,0.00019726,2]
[388857025,1759429679847,-500.0,0.00019773,2]
[388857026,1759429679875,-557.75875705,0.00019773,2]
[388857027,1759429679896,-500.0,0.00019773,2]
[388857028,1759429679918,-500.0,0.00019773,2]
[388857029,1759429679938,-500.0,0.00019773,2]
[388857030,1759429679958,-500.19111431,0.00019773,2]
[388857031,1759429679978,-325.501132,0.00019773,2]
[388857032,1759429679998,-601.31019936,0.00019773,2]
[388857033,1759429680018,-504.07436454,0.00019773,2]
[388857034,1759429680040,-1066.5188701,0.00019784,2]
[388857035,1759429680061,-321.5054306,0.00019825,2]
[388857036,1759429680082,-587.2297085,0.00019825,2]
[388857037,1759429680103,-587.2297085,0.00019825,2]
[388857038,1759429680125,-151.0,0.000199,2]
[388857039,1759429680146,-151.0,0.000199,2]
[388857040,1759429680166,-176.75575821,0.000199,2]
[388857041,1759429680187,-1000.0,0.00019943,2]
[388857042,1759429680208,-150.0,0.00019954,2]
[388857043,1759429680229,-989.4724,0.00019966,2]
[388857044,1759429680251,-500.0,0.00019973,2]
[388857045,1759429680270,-500.0,0.00019973,2]
[388857046,1759429680291,-500.0,0.00019973,2]
[388857047,1759429680312,-35.55105535,0.00019973,2]
[388857123,1759429831918,-223.11215318,0.00019078,2]
[388857125,1759429831928,-1000.0,0.00019078,2]
[388857127,1759429831938,-300.0,0.00019177,2]
[388857129,1759429831949,-151.0,0.00019178,2]
[388857131,1759429831959,-500.0,0.00019178,2]
[388857133,1759429831969,-500.0,0.00019178,2]
[388857135,1759429831979,-1124.74,0.00019178,2]
[388857137,1759429831989,-1495.31,0.00019178,2]
[388857139,1759429831999,-818.52,0.00019178,2]
[388857141,1759429832009,-500.0,0.00019178,2]
[388857143,1759429832019,-500.0,0.00019178,2]
[388857145,1759429832028,-500.0,0.00019178,2]
[388857147,1759429832038,-500.0,0.00019178,2]
[388857149,1759429832049,-846.25,0.00019178,2]
[388857151,1759429832058,-500.0,0.00019178,2]
[388857153,1759429832068,-500.0,0.00019178,2]
[388857155,1759429832078,-326.01731659,0.00019178,2]
[388857157,1759429832089,-2066.49,0.00019178,2]
[388857158,1759429832099,-500.0,0.00019178,2]
[388857159,1759429832110,-457.90651188,0.00019178,2]
[388857166,1759429833069,-42.09348812,0.00019178,2]
[388857167,1759429833078,-513.7,0.00019178,2]
[388857168,1759429833088,-500.0,0.00019178,2]
[388857169,1759429833097,-500.0,0.00019178,2]
[388857170,1759429833107,-786.15,0.00019178,2]
[388857171,1759429833116,-500.0,0.00019178,2]
[388857172,1759429833125,-4099.31,0.00019178,2]
[388857173,1759429833135,-500.0,0.00019178,2]
[388857174,1759429833144,-568.23,0.00019178,2]
[388857175,1759429833154,-2602.63711288,0.00019178,2]
[388857176,1759429833638,-463.66376798,0.00019178,2]
[388857178,1759429837746,-844.42911914,0.00019178,2]
[388857179,1759429837756,-527.52,0.00019178,2]
[388857180,1759429837765,-370.7249778,0.00019178,2]
[388857181,1759429837778,-129.2750222,0.00019178,2]
[388857182,1759429837787,-500.0,0.00019178,2]
[388857183,1759429837796,-2063.52582443,0.00019178,2]
[388857184,1759429837812,-306.8,0.00019178,2]
[388857222,1759429847104,-1587.84417557,0.00019178,2]
[388857223,1759429847114,-642.05,0.00019178,2]
[388857224,1759429847123,-177.31926021,0.00019178,2]
[388857225,1759429847133,-500.0,0.00019178,2]
[388857226,1759429847142,-2483.61,0.00019178,2]
[388857227,1759429847151,-1309.9,0.00019178,2]
[388857228,1759429847161,-781.63,0.00019178,2]
[388857229,1759429847170,-1379.09,0.00019178,2]
[388857230,1759429847179,-1790.86,0.00019178,2]
[388857231,1759429847188,-240.88627299,0.00019178,2]
[388857232,1759429847198,-1863.54,0.00019178,2]
[388857233,1759429847208,-1543.11,0.00019178,2]
[388857234,1759429847217,-938.42,0.00019178,2]
[388857235,1759429847226,-500.0,0.00019178,2]
[388857236,1759429847236,-1131.35,0.00019178,2]
[388857237,1759429847245,-1121.48,0.00019178,2]
[388857238,1759429847255,-2675.47,0.00019178,2]
[388857239,1759429847264,-500.0,0.00019178,2]
[388857240,1759429847274,-3129.7,0.00019178,2]
[388857241,1759429847283,-500.0,0.00019178,2]
[388857242,1759429847293,-500.0,0.00019178,2]
[388857243,1759429847302,-339.05144965,0.00019178,2]
[388857244,1759429847311,-500.0,0.00019178,2]
[388857245,1759429847320,-469.53582746,0.00019178,2]
[388857246,1759429847330,-1424.94,0.00019178,2]
[388857247,1759429847339,-500.0,0.00019178,2]
[388857248,1759429847349,-603.59,0.00019178,2]
[388857249,1759429847358,-952.5,0.00019178,2]
[388857250,1759429847368,-500.0,0.00019178,2]
[388857251,1759429847377,-931.62,0.00019178,2]
[388857252,1759429847387,-4094.47,0.00019178,2]
[388857253,1759429847397,-500.0,0.00019178,2]
[388857254,1759429847406,-803.3,0.00019178,2]
[388857255,1759429847416,-762.62,0.00019178,2]
[388857256,1759429847425,-813.06,0.00019178,2]
[388857257,1759429847435,-1162.0,0.00019178,2]
[388857258,1759429847445,-1926.19,0.00019178,2]
[388857259,1759429847455,-451.44928523,0.00019178,2]
[388857260,1759429847464,-1507.65,0.00019178,2]
[388857261,1759429847474,-500.0,0.00019178,2]
[388857262,1759429847483,-883.64,0.00019178,2]
[388857263,1759429847492,-4491.96,0.00019178,2]
[388857264,1759429847503,-500.0,0.00019178,2]
[388857265,1759429847512,-523.73,0.00019178,2]
[388857266,1759429847521,-1056.88,0.00019178,2]
[388857267,1759429847531,-1136.73,0.00019178,2]
[388857268,1759429847540,-500.0,0.00019178,2]
[388857269,1759429847550,-500.0,0.00019178,2]
[388857270,1759429847559,-500.0,0.00019178,2]
[388857271,1759429847568,-500.0,0.00019178,2]
[388857272,1759429847577,-500.0,0.00019178,2]
[388857273,1759429847586,-500.0,0.00019178,2]
[388857274,1759429847596,-669.88,0.00019178,2]
[388857275,1759429847605,-500.0,0.00019178,2]
[388857276,1759429847615,-692.65,0.00019178,2]
[388857277,1759429847624,-500.0,0.00019178,2]
[388857278,1759429847633,-500.0,0.00019178,2]
[388857279,1759429847643,-500.0,0.00019178,2]
[388857280,1759429847653,-739.0,0.00019178,2]
[388857281,1759429847663,-1550.82,0.00019178,2]
[388857282,1759429847672,-862.86,0.00019178,2]
[388857283,1759429847681,-332.81358871,0.00019178,2]
[388857284,1759429847691,-500.0,0.00019178,2]
[388857285,1759429847782,-500.0,0.00019178,2]
[388857286,1759429847794,-687.79,0.00019178,2]
[388857287,1759429847804,-1178.93,0.00019178,2]
[388857288,1759429847814,-2891.16,0.00019178,2]
[388857289,1759429847824,-500.0,0.00019178,2]
[388857290,1759429847834,-619.02,0.00019178,2]
[388857291,1759429847845,-500.0,0.00019178,2]
[388857292,1759429847854,-551.04,0.00019446,2]
[388857293,1759429847864,-982.5,0.00019446,2]
[388857294,1759429847873,-500.0,0.00019446,2]
[388857295,1759429847883,-500.0,0.00019446,2]
[388857296,1759429847892,-874.89,0.00019446,2]
[388857297,1759429847902,-500.0,0.00019446,2]
[388857298,1759429847911,-777.86,0.00019446,2]
[388857299,1759429847921,-818.63,0.00019446,2]
[388857300,1759429847931,-500.0,0.00019446,2]
[388857301,1759429847940,-294.72633946,0.00019446,2]
[388857302,1759429847950,-500.64,0.00019446,2]
[388857303,1759429847959,-1499.75,0.00019446,2]
[388857304,1759429847969,-500.0,0.00019446,2]
[388857305,1759429847978,-382.15854991,0.00019446,2]
[388857306,1759429847987,-1258.61,0.00019446,2]
[388857307,1759429847997,-500.0,0.00019446,2]
[388857308,1759429848007,-1247.09,0.00019446,2]
[388857309,1759429848016,-500.0,0.00019446,2]
[388857310,1759429848025,-500.0,0.00019446,2]
[388857311,1759429848034,-2102.29,0.00019446,2]
[388857312,1759429848043,-1024.32,0.00019446,2]
[388857313,1759429848053,-1358.29,0.00019446,2]
[388857314,1759429848062,-500.0,0.00019446,2]
[388857315,1759429848071,-144.65533781,0.00019446,2]
[388857316,1759429848298,-355.34466219,0.00019446,2]
[388857317,1759429848308,-511.14,0.00019446,2]
[388857318,1759429848317,-363.53523989,0.00019451,2]
[388857319,1759429849729,-271.25476011,0.00019451,2]
[388857320,1759429849739,-500.0,0.00019451,2]
[388857321,1759429849751,-500.0,0.00019451,2]
[388857322,1759429849763,-245.0,0.00019452,2]
[388857323,1759429849775,-500.0,0.00019452,2]
[388857324,1759429849789,-500.0,0.00019452,2]
[388857325,1759429849799,-1124.74,0.00019452,2]
[388857326,1759429849808,-1495.31,0.00019452,2]
[388857327,1759429849817,-818.52,0.00019452,2]
[388857328,1759429849827,-500.0,0.00019452,2]
[388857329,1759429849836,-500.0,0.00019452,2]
[388857330,1759429849845,-500.0,0.00019452,2]
[388857331,1759429849855,-846.25,0.00019452,2]
[388857332,1759429849864,-500.0,0.00019452,2]
[388857333,1759429849874,-500.0,0.00019452,2]
[388857334,1759429849883,-500.0,0.00019452,2]
[388857335,1759429849894,-2066.49,0.00019452,2]
[388857336,1759429849904,-500.0,0.00019452,2]
[388857337,1759429849914,-513.7,0.00019452,2]
[388857338,1759429849924,-500.0,0.00019452,2]
[388857339,1759429849934,-500.0,0.00019452,2]
[388857340,1759429849943,-611.84439089,0.00019452,2]
[388857341,1759429849955,-174.30560911,0.00019452,2]
[388857342,1759429849964,-500.0,0.00019452,2]
[388857343,1759429849974,-500.0,0.00019452,2]
[388857344,1759429849983,-3105.55206504,0.00019452,2]
[388857345,1759429849995,-993.75793496,0.00019452,2]
[388857346,1759429850006,-500.0,0.00019452,2]
[388857347,1759429850015,-568.23,0.00019452,2]
[388857348,1759429850025,-3910.73,0.00019452,2]
[388857349,1759429850035,-527.52,0.00019452,2]
[388857350,1759429850044,-500.0,0.00019452,2]
[388857351,1759429850053,-500.0,0.00019452,2]
[388857352,1759429850063,-3958.17,0.00019452,2]
[388857353,1759429850072,-642.05,0.00019452,2]
[388857354,1759429850082,-500.0,0.00019452,2]
[388857355,1759429850091,-2483.61,0.00019452,2]
[388857356,1759429850101,-1309.9,0.00019452,2]
[388857357,1759429850111,-781.63,0.00019452,2]
[388857358,1759429850122,-1379.09,0.00019452,2]
[388857359,1759429850131,-1790.86,0.00019452,2]
[388857360,1759429850141,-1863.54,0.00019452,2]
[388857361,1759429850150,-1543.11,0.00019452,2]
[388857362,1759429850160,-938.42,0.00019452,2]
[388857363,1759429850169,-500.0,0.00019452,2]
[388857364,1759429850179,-1131.35,0.00019452,2]
[388857365,1759429850188,-1121.48,0.00019452,2]
[388857366,1759429850198,-2675.47,0.00019452,2]
[388857367,1759429850207,-500.0,0.00019452,2]
[388857368,1759429850217,-3129.7,0.00019452,2]
[388857369,1759429850227,-500.0,0.00019452,2]
[388857370,1759429850236,-500.0,0.00019452,2]
[388857371,1759429850245,-500.0,0.00019452,2]
[388857372,1759429850259,-1424.94,0.00019452,2]
[388857373,1759429850268,-500.0,0.00019452,2]
[388857374,1759429850278,-603.59,0.00019452,2]
[388857375,1759429850287,-500.0,0.00019452,2]
[388857376,1759429850297,-952.5,0.00019452,2]
[388857377,1759429850306,-931.62,0.00019452,2]
[388857378,1759429850316,-4094.47,0.00019452,2]
[388857379,1759429850325,-500.0,0.00019452,2]
[388857380,1759429850335,-803.3,0.00019452,2]
[388857381,1759429850345,-762.62,0.00019452,2]
[388857382,1759429850354,-813.06,0.00019452,2]
[388857383,1759429850363,-1162.0,0.00019452,2]
[388857384,1759429850373,-1926.19,0.00019452,2]
[388857385,1759429850382,-1507.65,0.00019452,2]
[388857386,1759429850392,-500.0,0.00019452,2]
[388857387,1759429850401,-883.64,0.00019452,2]
[388857388,1759429850411,-4491.96,0.00019452,2]
[388857389,1759429850420,-500.0,0.00019452,2]
[388857390,1759429850430,-523.73,0.00019452,2]
[388857391,1759429850440,-1056.88,0.00019452,2]
[388857392,1759429850450,-1136.73,0.00019452,2]
[388857393,1759429850461,-500.0,0.00019452,2]
[388857394,1759429850470,-500.0,0.00019452,2]
[388857395,1759429850481,-500.0,0.00019452,2]
[388857396,1759429850490,-500.0,0.00019452,2]
[388857397,1759429850500,-500.0,0.00019452,2]
[388857398,1759429850510,-360.0,0.00019452,2]
[388857399,1759429850520,-669.88,0.00019452,2]
[388857400,1759429850530,-500.0,0.00019452,2]
[388857401,1759429850539,-692.65,0.00019452,2]
[388857402,1759429850549,-356.74053511,0.00019452,2]
[388857403,1759429850558,-500.0,0.00019452,2]
[388857404,1759429850568,-500.0,0.00019452,2]
[388857405,1759429850577,-739.0,0.00019452,2]
[388857406,1759429850587,-1550.82,0.00019452,2]
[388857407,1759429850596,-862.86,0.00019452,2]
[388857408,1759429850606,-500.0,0.00019452,2]
[388857409,1759429850615,-417.64108408,0.00019452,2]
[388857410,1759429850626,-687.79,0.00019452,2]
[388857411,1759429850636,-1178.93,0.00019452,2]
[388857412,1759429850646,-2891.16,0.00019452,2]
[388857413,1759429850655,-500.0,0.00019452,2]
[388857414,1759429850665,-197.24177497,0.00019452,2]
[388857415,1759429850675,-619.02,0.00019452,2]
[388857416,1759429850685,-1000.0,0.00019478,2]
[388857417,1759429850696,-551.04,0.0001972,2]
[388857418,1759429850706,-982.5,0.0001972,2]
[388857419,1759429850716,-500.0,0.0001972,2]
[388857420,1759429850726,-500.0,0.0001972,2]
[388857421,1759429850736,-874.89,0.0001972,2]
[388857422,1759429850745,-500.0,0.0001972,2]
[388857423,1759429850759,-777.86,0.0001972,2]
[388857424,1759429850768,-818.63,0.0001972,2]
[388857425,1759429850779,-500.0,0.0001972,2]
[388857426,1759429850793,-500.64,0.0001972,2]
[388857427,1759429850802,-1499.75,0.0001972,2]
[388857428,1759429850811,-500.0,0.0001972,2]
[388857429,1759429850821,-1258.61,0.0001972,2]
[388857430,1759429850832,-500.0,0.0001972,2]
[388857431,1759429850842,-1247.09,0.0001972,2]
[388857432,1759429850852,-500.0,0.0001972,2]
[388857433,1759429850863,-500.0,0.0001972,2]
[388857434,1759429850872,-2102.29,0.0001972,2]
[388857435,1759429850881,-1024.32,0.0001972,2]
[388857436,1759429850890,-1358.29,0.0001972,2]
[388857437,1759429850900,-500.0,0.0001972,2]
[388857438,1759429850912,-500.0,0.0001972,2]
[388857439,1759429850923,-511.14,0.0001972,2]
[388857440,1759429850932,-634.79,0.00019725,2]
[388857441,1759429850941,-500.0,0.00019725,2]
[388857442,1759429850950,-500.0,0.00019725,2]
[388857443,1759429850960,-500.0,0.00019726,2]
[388857444,1759429850970,-500.0,0.00019726,2]
[388857445,1759429850979,-1124.74,0.00019726,2]
[388857446,1759429850989,-1495.31,0.00019726,2]
[388857447,1759429850998,-818.52,0.00019726,2]
[388857448,1759429851009,-500.0,0.00019726,2]
[388857449,1759429851020,-500.0,0.00019726,2]
[388857450,1759429851030,-500.0,0.00019726,2]
[388857451,1759429851039,-846.25,0.00019726,2]
[388857452,1759429851048,-500.0,0.00019726,2]
[388857453,1759429851058,-500.0,0.00019726,2]
[388857454,1759429851068,-500.0,0.00019726,2]
[388857455,1759429851078,-2066.49,0.00019726,2]
[388857456,1759429851087,-500.0,0.00019726,2]
[388857457,1759429851096,-513.7,0.00019726,2]
[388857458,1759429851107,-500.0,0.00019726,2]
[388857459,1759429851116,-500.0,0.00019726,2]
[388857460,1759429851125,-786.15,0.00019726,2]
[388857461,1759429851136,-500.0,0.00019726,2]
[388857462,1759429851145,-500.0,0.00019726,2]
[388857463,1759429851154,-4099.31,0.00019726,2]
[388857464,1759429851164,-500.0,0.00019726,2]
[388857465,1759429851173,-568.23,0.00019726,2]
[388857466,1759429851181,-3910.73,0.00019726,2]
[388857467,1759429851190,-527.52,0.00019726,2]
[388857468,1759429851200,-500.0,0.00019726,2]
[388857469,1759429851208,-500.0,0.00019726,2]
[388857470,1759429851217,-3958.17,0.00019726,2]
[388857471,1759429851226,-642.05,0.00019726,2]
[388857472,1759429851236,-430.20767164,0.00019726,2]
[388857473,1759429851246,-2483.61,0.00019726,2]
[388857474,1759429851257,-1309.9,0.00019726,2]
[388857475,1759429851267,-781.63,0.00019726,2]
[388857476,1759429851277,-1379.09,0.00019726,2]
[388857477,1759429851287,-1790.86,0.00019726,2]
[388857478,1759429851296,-1863.54,0.00019726,2]
[388857479,1759429851305,-1543.11,0.00019726,2]
[388857480,1759429851316,-938.42,0.00019726,2]
[388857481,1759429851325,-500.0,0.00019726,2]
[388857482,1759429851335,-151.0,0.00019726,2]
[388857483,1759429851345,-500.0,0.00019726,2]
[388857484,1759429851355,-1131.35,0.00019726,2]
[388857485,1759429851364,-1121.48,0.00019726,2]
[388857486,1759429851374,-2675.47,0.00019726,2]
[388857487,1759429851383,-500.0,0.00019726,2]
[388857488,1759429851393,-3129.7,0.00019726,2]
[388857489,1759429851402,-500.0,0.00019726,2]
[388857490,1759429851412,-419.28400359,0.00019726,2]
[388857491,1759429851421,-500.0,0.00019726,2]
[388857492,1759429851431,-1424.94,0.00019726,2]
[388857493,1759429851441,-500.0,0.00019726,2]
[388857494,1759429851451,-603.59,0.00019726,2]
[388857495,1759429851460,-500.0,0.00019726,2]
[388857496,1759429851469,-952.5,0.00019726,2]
[388857497,1759429851479,-931.62,0.00019726,2]
[388857498,1759429851489,-4094.47,0.00019726,2]
[388857499,1759429851499,-500.0,0.00019726,2]
[388857500,1759429851508,-803.3,0.00019726,2]
[388857501,1759429851517,-762.62,0.00019726,2]
[388857502,1759429851527,-813.06,0.00019726,2]
[388857503,1759429851538,-1162.0,0.00019726,2]
[388857504,1759429851547,-1926.19,0.00019726,2]
[388857505,1759429851556,-1507.65,0.00019726,2]
[388857506,1759429851565,-500.0,0.00019726,2]
[388857507,1759429851579,-883.64,0.00019726,2]
[388857508,1759429851588,-4491.96,0.00019726,2]
[388857509,1759429851599,-500.0,0.00019726,2]
[388857510,1759429851608,-523.73,0.00019726,2]
[388857511,1759429851618,-1056.88,0.00019726,2]
[388857512,1759429851628,-1136.73,0.00019726,2]
[388857513,1759429851638,-500.0,0.00019726,2]
[388857514,1759429851648,-500.0,0.00019726,2]
[388857515,1759429851660,-500.0,0.00019726,2]
[388857516,1759429851669,-500.0,0.00019726,2]
[388857517,1759429851678,-669.88,0.00019726,2]
[388857518,1759429851686,-500.0,0.00019726,2]
[388857519,1759429851694,-692.65,0.00019726,2]
[388857520,1759429851704,-500.0,0.00019726,2]
[388857521,1759429851713,-500.0,0.00019726,2]
[388857522,1759429851723,-739.0,0.00019726,2]
[388857523,1759429851732,-1550.82,0.00019726,2]
[388857524,1759429851742,-862.86,0.00019726,2]
[388857525,1759429851752,-500.0,0.00019726,2]
[388857526,1759429851761,-687.79,0.00019726,2]
[388857527,1759429851771,-1178.93,0.00019726,2]
[388857528,1759429851783,-2891.16,0.00019726,2]
[388857529,1759429851794,-500.0,0.00019726,2]
[388857530,1759429851804,-619.02,0.00019726,2]
[388857531,1759429851813,-1000.0,0.00019878,2]
[388857532,1759429851823,-464.44894465,0.00019973,2]
[388857533,1759429852007,-500.0,0.00019973,2]
[388857534,1759429852018,-500.0,0.00019973,2]
[388857535,1759429852028,-500.0,0.00019973,2]
[388857536,1759429852037,-500.0,0.00019973,2]
[388857537,1759429852047,-500.0,0.00019973,2]
[388857538,1759429852056,-500.0,0.00019973,2]
[388857539,1759429852066,-500.0,0.00019973,2]
[388857540,1759429852075,-500.0,0.00019973,2]
[388857541,1759429852084,-500.0,0.00019973,2]
[388857542,1759429852094,-500.0,0.00019973,2]
[388857543,1759429852104,-500.0,0.00019994,2]
[388857544,1759429852113,-911.17,0.00019994,2]
[388857545,1759429852123,-3432.03,0.00019994,2]
[388857546,1759429852133,-500.0,0.00019994,2]
[388857547,1759429852142,-748.4,0.00019994,2]
[388857548,1759429852151,-500.0,0.00019994,2]
[388857549,1759429852161,-500.0,0.00019994,2]
[388857550,1759429852171,-562.53,0.00019994,2]
[388857551,1759429852180,-500.0,0.00019994,2]
[388857552,1759429852190,-505.24,0.00019994,2]
[388857553,1759429852199,-1297.07,0.00019994,2]
[388857554,1759429852208,-500.0,0.00019994,2]
[388857555,1759429852217,-500.0,0.00019994,2]
[388857556,1759429852227,-500.0,0.00019994,2]
[388857557,1759429852236,-500.0,0.00019994,2]
[388857558,1759429852245,-2422.84,0.00019994,2]
[388857559,1759429852255,-794.39,0.00019994,2]
[388857560,1759429852264,-551.04,0.00019994,2]
[388857561,1759429852274,-982.5,0.00019994,2]
[388857562,1759429852283,-500.0,0.00019994,2]
[388857563,1759429852292,-500.0,0.00019994,2]
[388857564,1759429852301,-874.89,0.00019994,2]
[388857565,1759429852310,-500.0,0.00019994,2]
[388857566,1759429852320,-777.86,0.00019994,2]
[388857567,1759429852329,-818.63,0.00019994,2]
[388857568,1759429852340,-500.0,0.00019994,2]
[388857569,1759429852350,-500.64,0.00019994,2]
[388857570,1759429852359,-1499.75,0.00019994,2]
[388857571,1759429852368,-500.0,0.00019994,2]
[388857572,1759429852377,-1258.61,0.00019994,2]
[388857573,1759429852386,-500.0,0.00019994,2]
[388857574,1759429852395,-1247.09,0.00019994,2]
[388857575,1759429852405,-491.71371537,0.00019994,2]
[388857576,1759429852415,-500.0,0.00019994,2]
[388857577,1759429852424,-2102.29,0.00019994,2]
[388857578,1759429852437,-1024.32,0.00019994,2]
[388857579,1759429852448,-1358.29,0.00019994,2]
[388857580,1759429852457,-500.0,0.00019994,2]
[388857581,1759429852467,-500.0,0.00019994,2]
[388857582,1759429852476,-511.14,0.00019994,2]
[388857583,1759429852487,-151.0,0.00019995,2]
[388857584,1759429852498,-634.79,0.00019999,2]
[388857585,1759429852511,-500.0,0.00019999,2]
[388857586,1759429852521,-500.0,0.00019999,2]
[388857587,1759429852531,-500.0,0.0002,2]